bitfinex-derivatives/quotes_BTCF0:USTF0_20250424
["timestamp","ask_amount","ask_price","bid_price","bid_amount"]
[1745511687306,0.01697438,93556.0,93555.0,0.26354586]
[1745511688307,0.01897438,93556.0,93555.0,0.26354586]
[1745511688515,0.02097438,93556.0,93555.0,0.26354586]
[1745511688913,0.11207438,93556.0,93555.0,0.26354586]
[1745511689109,0.11207438,93556.0,93555.0,0.26349437]
[1745511690517,0.11207438,93556.0,93555.0,0.15665027]
[1745511690518,0.21891728,93556.0,93555.0,0.15665027]
[1745511690816,0.21891728,93556.0,93555.0,0.26349437]
[1745511690817,0.39791728,93556.0,93555.0,0.26349437]
[1745511691019,0.39791728,93556.0,93555.0,0.14]
[1745511691217,0.39791728,93556.0,93555.0,0.2468441]
[1745511691607,0.29107438,93556.0,93555.0,0.26288591]
[1745511691814,0.39791728,93556.0,93555.0,0.26288479]
[1745511692618,0.29107438,93556.0,93555.0,0.26288479]
[1745511692919,0.29107438,93556.0,93555.0,0.26301638]
[1745511694314,0.39791728,93556.0,93555.0,0.26301638]
[1745511699325,0.39791728,93556.0,93555.0,0.15617228]
[1745511699521,0.1068584,93545.0,93544.0,0.160282]
[1745511699824,0.0534279,93547.0,93546.0,0.1068543]
[1745511700024,0.0534279,93547.0,93546.0,0.2468543]
[1745511700728,0.1988515,93549.0,93548.0,0.106852]
[1745511701032,0.092,93549.0,93548.0,0.246852]
[1745511701520,0.092,93549.0,93548.0,0.342452]
[1745511701720,0.092,93549.0,93548.0,0.433452]
[1745511701921,0.1988509,93549.0,93548.0,0.433452]
[1745511702726,0.1988509,93549.0,93548.0,0.337852]
[1745511706225,0.1988509,93549.0,93548.0,0.14]
[1745511706719,0.1988509,93549.0,93548.0,0.246852]
[1745511709716,0.1988509,93549.0,93548.0,0.342952]
[1745511710123,0.1068726,93530.0,93529.0,0.00160378]
[1745511710328,0.2137636,93525.0,93522.0,0.0534403]
[1745511710619,0.1068808,93525.0,93522.0,0.0534403]
[1745511710820,0.1959806,93524.0,93523.0,0.1068806]
[1745511711027,0.1959806,93524.0,93523.0,0.2068806]
[1745511711415,0.1959806,93524.0,93523.0,0.22249419]
[1745511712131,0.0891,93524.0,93523.0,0.31789419]
[1745511712822,0.0891,93524.0,93523.0,0.31889419]
[1745511713024,0.1959795,93524.0,93523.0,0.31889419]
[1745511713425,0.1959795,93524.0,93523.0,0.41619086]
[1745511713821,0.1959795,93524.0,93523.0,0.41619128]
[1745511714431,0.1959795,93524.0,93523.0,0.31889128]
[1745511715218,0.1959795,93524.0,93523.0,0.31893333]
[1745511716627,0.1959795,93524.0,93523.0,0.41313333]
[1745511718219,0.1959795,93524.0,93523.0,0.31893333]
[1745511718418,0.1959795,93524.0,93523.0,0.3032806]
[1745511719427,0.1959795,93524.0,93523.0,0.31882458]
[1745511720319,0.0891,93524.0,93523.0,0.31882458]
[1745511720523,0.0891,93524.0,93523.0,0.41152458]
[1745511721125,0.3608,93530.0,93529.0,0.1068738]
[1745511721319,0.3608,93530.0,93529.0,0.26237452]
[1745511722326,0.4676726,93530.0,93529.0,0.26237452]
[1745511722527,0.4563,93530.0,93529.0,0.26237452]
[1745511722734,0.4563,93530.0,93529.0,0.35982585]
[1745511723235,0.4563,93530.0,93529.0,0.3443738]
[1745511724433,0.4563,93530.0,93529.0,0.35591307]
[1745511725422,0.0955,93530.0,93529.0,0.35591307]
[1745511726437,0.5631726,93530.0,93529.0,0.14]
[1745511726637,0.6613726,93530.0,93529.0,0.26232663]
[1745511726828,0.6613726,93530.0,93529.0,0.2468738]
[1745511729432,0.6613726,93530.0,93529.0,0.26239228]
[1745511730137,0.1068806,93523.0,93522.0,0.11978608]
[1745511730334,0.1068806,93523.0,93522.0,0.22978608]
[1745511730743,0.1068806,93523.0,93522.0,0.41418608]
[1745511730935,0.1974806,93523.0,93522.0,0.41418608]
[1745511731133,0.0906,93523.0,93522.0,0.41418608]
[1745511731441,0.1974806,93523.0,93522.0,0.41618608]
[1745511731639,0.0906,93523.0,93522.0,0.41718608]
[1745511732842,0.1974806,93523.0,93522.0,0.41718608]
[1745511733245,0.0906,93523.0,93522.0,0.41718608]
[1745511734436,0.0906,93523.0,93522.0,0.43264654]
[1745511734836,0.1974806,93523.0,93522.0,0.43264654]
[1745511735439,0.1974806,93523.0,93522.0,0.41718608]
[1745511737034,0.1974806,93523.0,93522.0,0.32188608]
[1745511737636,0.2928806,93523.0,93522.0,0.32188608]
[1745511738441,0.2928806,93523.0,93522.0,0.23278608]
[1745511738942,0.2928806,93523.0,93522.0,0.13590468]
[1745511739845,0.2928806,93523.0,93522.0,0.24278648]
[1745511740047,0.2928806,93523.0,93522.0,0.123]
[1745511741033,0.2928806,93523.0,93522.0,0.2298818]
[1745511742539,0.2928806,93523.0,93522.0,0.123]
[1745511747146,0.7928806,93523.0,93522.0,0.123]
[1745511747443,0.7928806,93523.0,93522.0,0.12297325]
[1745511749444,0.7928806,93523.0,93522.0,0.13894189]
[1745511749747,0.7928806,93523.0,93522.0,0.12297325]
[1745511750948,0.1068875,93517.0,93516.0,0.00787503]
[1745511751152,0.1068875,93517.0,93498.0,0.0534545]
[1745511751153,0.1068989,93507.0,93498.0,0.0534545]
[1745511751446,0.4676989,93507.0,93506.0,0.16106944]
[1745511751857,0.9676989,93507.0,93506.0,0.16106944]
[1745511752158,1.1551989,93507.0,93506.0,0.16106944]
[1745511753257,1.1551989,93507.0,93506.0,0.26796944]
[1745511753548,1.1551989,93507.0,93506.0,0.36926944]
[1745511753751,1.1551989,93507.0,93506.0,0.26236944]
[1745511753952,1.1551989,93507.0,93506.0,0.26336944]
[1745511754153,1.1551989,93507.0,93506.0,0.37326944]
[1745511754756,0.6551989,93507.0,93506.0,0.37326944]
[1745511755654,0.6551989,93507.0,93506.0,0.26636944]
[1745511756555,0.6551989,93507.0,93506.0,0.37326944]
[1745511757051,0.6551989,93507.0,93506.0,0.16806944]
[1745511758251,1.1551989,93507.0,93506.0,0.16806944]
[1745511760857,1.1551989,93507.0,93506.0,0.16506944]
[1745511761056,1.1551989,93507.0,93506.0,0.16206944]
[1745511761258,1.1551989,93507.0,93506.0,0.16306944]
[1745511765661,0.1069035,93503.0,93502.0,0.0979]
[1745511765860,0.1069035,93503.0,93502.0,0.12344167]
[1745511766258,0.1069115,93496.0,93493.0,0.0979]
[1745511766448,0.1069115,93496.0,93495.0,0.18226035]
[1745511766848,0.2033115,93496.0,93495.0,0.18226035]
[1745511767061,0.2033115,93496.0,93495.0,0.19019105]
[1745511767359,0.2033115,93496.0,93495.0,0.19319105]
[1745511767551,0.2033115,93496.0,93495.0,0.19719105]
[1745511767862,0.2033115,93496.0,93495.0,0.38769105]
[1745511769859,0.2033115,93496.0,93495.0,0.38469105]
[1745511770064,0.2033115,93496.0,93495.0,0.38669105]
[1745511770865,0.2033115,93496.0,93495.0,0.38269105]
[1745511771065,0.2033115,93496.0,93495.0,0.38469105]
[1745511771365,0.0964,93496.0,93495.0,0.38469105]
[1745511771865,0.3608,93497.0,93496.0,0.1069115]
[1745511772061,0.554651,93575.0,93500.0,0.1069069]
[1745511772062,0.097,93501.0,93500.0,0.1069069]
[1745511772264,0.097,93501.0,93500.0,0.2469069]
[1745511772657,0.097,93501.0,93500.0,0.4253069]
[1745511772859,0.08161083,93502.0,93501.0,0.1069058]
[1745511773064,0.10889374,93508.0,93507.0,0.1068989]
[1745511773254,0.10889374,93508.0,93507.0,0.2368989]
[1745511773957,0.10889374,93508.0,93507.0,0.4185989]
[1745511775764,0.2533411,93512.0,93511.0,0.1068943]
[1745511775963,0.2533411,93512.0,93511.0,0.2768943]
[1745511776655,0.2533411,93512.0,93511.0,0.4678943]
[1745511776856,0.2543411,93512.0,93511.0,0.4678943]
[1745511777056,0.6151411,93512.0,93511.0,0.4678943]
[1745511777260,0.6161411,93512.0,93511.0,0.4678943]
[1745511777960,0.6161411,93512.0,93511.0,0.361]
[1745511778163,0.6161411,93512.0,93511.0,0.2624]
[1745511778362,0.6161411,93512.0,93511.0,0.3692943]
[1745511778666,0.6161411,93512.0,93511.0,0.2624]
[1745511778971,0.6161411,93512.0,93511.0,0.17]
[1745511779754,1.1161411,93512.0,93511.0,0.17]
[1745511780962,0.1069092,93498.0,93497.0,0.2011103]
[1745511781268,0.1069092,93498.0,93497.0,0.3311103]
[1745511782175,0.1069092,93498.0,93497.0,0.3331103]
[1745511783471,0.1928,93499.0,93498.0,0.1069092]
[1745511783671,0.0945,93499.0,93498.0,0.3311092]
[1745511783973,0.1905,93499.0,93498.0,0.3311092]
[1745511784162,0.1905,93499.0,93498.0,0.13]
[1745511784358,0.1069092,93498.0,93497.0,0.002]
[1745511784561,0.1069092,93498.0,93497.0,0.2089103]
[1745511784760,0.2029092,93498.0,93497.0,0.2069103]
[1745511785759,0.2029092,93498.0,93497.0,0.2089103]
[1745511788561,0.2029092,93498.0,93497.0,0.102]
[1745511790073,0.3618,93512.0,93505.0,0.1069012]
[1745511790270,0.3618,93512.0,93506.0,0.1069]
[1745511790471,0.3618,93512.0,93506.0,0.2569]
[1745511791972,0.3618,93512.0,93511.0,0.1068943]
[1745511792178,0.3618,93512.0,93511.0,0.2568943]
[1745511792769,0.001,93512.0,93511.0,0.8077943]
[1745511792976,0.001,93512.0,93511.0,0.8177943]
[1745511793176,0.10889374,93522.0,93521.0,0.1068829]
[1745511793379,0.04037914,93522.0,93521.0,0.2568829]
[1745511793565,0.3608,93539.0,93532.0,0.1068703]
[1745511793764,0.3608,93539.0,93532.0,0.2568703]
[1745511794367,0.3608,93539.0,93532.0,0.4415703]
[1745511794771,0.1422044,93533.0,93532.0,0.4415703]
[1745511795277,0.3608,93550.0,93536.0,0.1068658]
[1745511795577,0.3608,93550.0,93536.0,0.2768658]
[1745511795768,0.13606091,93544.0,93536.0,0.3837778]
[1745511796879,0.13606091,93544.0,93536.0,0.39846852]
[1745511797979,0.0021,93537.0,93536.0,0.39846852]
[1745511799277,0.1089646,93537.0,93536.0,0.33091652]
[1745511799472,0.1089646,93537.0,93536.0,0.22405072]
[1745511799668,0.1089646,93537.0,93536.0,0.33091652]
[1745511800971,0.2062646,93537.0,93536.0,0.26155652]
[1745511801478,0.2062646,93537.0,93536.0,0.2468658]
[1745511802072,0.2062646,93537.0,93536.0,0.3427658]
[1745511802280,0.0994,93537.0,93536.0,0.3427658]
[1745511802481,0.2062646,93537.0,93536.0,0.3427658]
[1745511805184,0.0994,93537.0,93536.0,0.7035658]
[1745511805378,0.0994,93537.0,93536.0,0.7976658]
[1745511805881,0.2062646,93537.0,93536.0,0.4368658]
[1745511807280,0.0994,93537.0,93536.0,0.4368658]
[1745511809488,0.0994,93537.0,93536.0,0.3427658]
[1745511813881,0.0994,93537.0,93536.0,0.3527658]
[1745511814082,0.0994,93537.0,93536.0,0.4502658]
[1745511814384,0.0021,93537.0,93536.0,0.5671778]
[1745511815375,1e-08,93537.0,93536.0,0.5671778]
[1745511822087,1e-08,93537.0,93536.0,0.4602658]
[1745511822483,1e-08,93537.0,93536.0,0.5671778]
[1745511822684,1e-08,93537.0,93536.0,0.5571778]
[1745511824192,1e-08,93537.0,93536.0,0.3527658]
[1745511824389,1e-08,93537.0,93536.0,0.3427658]
[1745511827286,1e-08,93537.0,93536.0,0.15]
[1745511827486,0.10686461,93537.0,93536.0,0.2568658]
[1745511827883,0.30016461,93537.0,93536.0,0.2568658]
[1745511828088,0.19330001,93537.0,93536.0,0.2568658]
[1745511828681,0.30016461,93537.0,93536.0,0.2568658]
[1745511830897,0.30216461,93537.0,93536.0,0.2568658]
[1745511838485,0.30216461,93537.0,93536.0,0.15]
[1745511838688,0.30216461,93537.0,93536.0,0.2568658]
[1745511843501,0.30216461,93537.0,93536.0,0.15]
[1745511843702,0.30216461,93537.0,93536.0,0.2568658]
[1745511845102,0.10090001,93537.0,93536.0,0.2568658]
[1745511845401,0.10090001,93537.0,93536.0,0.9184658]
[1745511845703,0.20776461,93537.0,93536.0,0.7161658]
[1745511845888,0.20776461,93537.0,93536.0,0.3553658]
[1745511846090,0.30466461,93537.0,93536.0,0.3553658]
[1745511846290,0.30466461,93537.0,93536.0,0.2568658]
[1745511847793,0.30466461,93537.0,93536.0,0.3555658]
[1745511848702,0.30466461,93537.0,93536.0,0.2568658]
[1745511848907,0.10090001,93537.0,93536.0,0.2568658]
[1745511849203,0.10090001,93537.0,93536.0,0.7262658]
[1745511849504,0.10090001,93537.0,93536.0,0.9232658]
[1745511850204,0.10090001,93537.0,93536.0,0.7262658]
[1745511850407,0.10090001,93537.0,93536.0,0.8292658]
[1745511850601,0.20776461,93537.0,93536.0,0.8292658]
[1745511850997,0.10090001,93537.0,93536.0,0.8292658]
[1745511851397,0.20776461,93537.0,93536.0,0.8292658]
[1745511851708,0.40776461,93537.0,93536.0,0.3654658]
[1745511852298,0.40776461,93537.0,93535.0,0.0152714]
[1745511852299,0.1068658,93536.0,93535.0,0.0152714]
[1745511852509,0.1068715,93531.0,93530.0,0.1603075]
[1745511852709,0.1068715,93531.0,93530.0,0.3003075]
[1745511852907,0.1068715,93531.0,93530.0,0.3970075]
[1745511853210,0.1068715,93531.0,93530.0,0.30544395]
[1745511853902,0.3151715,93531.0,93530.0,0.30544395]
[1745511854510,0.3151715,93531.0,93530.0,0.30644395]
[1745511855309,0.3151715,93531.0,93530.0,0.20974395]
[1745511855510,0.3161715,93531.0,93530.0,0.20974395]
[1745511856117,0.1603186,93526.0,93525.0,0.0534391]
[1745511856315,0.0534391,93526.0,93525.0,0.3003174]
[1745511856515,0.3614391,93526.0,93525.0,0.3003174]
[1745511857413,0.2056,93526.0,93525.0,0.31717573]
[1745511857614,0.2056,93526.0,93525.0,0.41537573]
[1745511857915,0.3124772,93526.0,93525.0,0.41537573]
[1745511858714,0.3124772,93526.0,93525.0,0.31717573]
[1745511860813,0.2056,93526.0,93525.0,0.31717573]
[1745511861005,0.3124772,93526.0,93525.0,0.42137573]
[1745511862901,0.3124772,93526.0,93525.0,0.31717573]
[1745511863402,0.3124772,93526.0,93525.0,0.21029743]
[1745511865211,0.3124772,93526.0,93525.0,0.142]
[1745511865421,0.3124772,93526.0,93525.0,0.2488783]
[1745511866309,0.3124772,93526.0,93525.0,0.142]
[1745511866515,0.8124772,93526.0,93525.0,0.142]
[1745511869314,0.8124772,93526.0,93525.0,0.2488783]
[1745511871009,0.3124772,93526.0,93525.0,0.3507783]
[1745511874813,0.3124772,93526.0,93525.0,0.2439]
[1745511875013,0.3124772,93526.0,93525.0,0.142]
[1745511875617,0.1068989,93507.0,93506.0,0.00106944]
[1745511875814,0.1068989,93507.0,93506.0,0.35485964]
[1745511876019,0.1068989,93507.0,93506.0,0.24796624]
[1745511876316,0.1068989,93507.0,93506.0,0.26210652]
[1745511876911,0.1068989,93507.0,93506.0,0.35740652]
[1745511877110,0.1078989,93507.0,93506.0,0.37440652]
[1745511878513,0.1088989,93507.0,93506.0,0.38840652]
[1745511881915,0.1088989,93507.0,93506.0,0.38840652]
[1745511882217,0.1088989,93507.0,93506.0,0.33495762]
[1745511883017,0.1088989,93507.0,93506.0,0.38840972]
[1745511883321,0.1088989,93507.0,93506.0,0.37426944]
[1745511884405,0.1088989,93507.0,93506.0,0.38866927]
[1745511884818,0.1088989,93507.0,93506.0,0.28176927]
[1745511885016,0.1078989,93507.0,93506.0,0.37466927]
[1745511885205,0.1078989,93507.0,93506.0,0.37566927]
[1745511885608,0.1068989,93507.0,93506.0,0.25376927]
[1745511885820,0.1068989,93507.0,93506.0,0.14406944]
[1745511886009,0.1069046,93502.0,93501.0,0.00160426]
[1745511886214,0.4677046,93502.0,93501.0,0.08160426]
[1745511886817,0.6742046,93502.0,93501.0,0.08160426]
[1745511887126,0.6742046,93502.0,93501.0,0.083]
[1745511887918,1.1742046,93502.0,93501.0,0.083]
[1745511888218,1.1742046,93502.0,93501.0,0.084]
[1745511889417,1.1742046,93502.0,93501.0,0.1909058]
[1745511890520,1.1742046,93502.0,93501.0,0.084]
[1745511891124,1.1742046,93502.0,93501.0,0.1851]
[1745511892413,1.1742046,93502.0,93501.0,0.084]
[1745511893721,1.1742046,93502.0,93501.0,0.083]
[1745511897137,1.174252,93502.0,93489.0,0.0995]
[1745511897323,0.3608,93490.0,93489.0,0.2295]
[1745511897630,0.4677183,93490.0,93489.0,0.3364195]
[1745511898023,0.5691183,93490.0,93489.0,0.3364195]
[1745511899933,0.5691183,93490.0,93489.0,0.3394195]
[1745511900732,0.5691183,93490.0,93489.0,0.34762299]
[1745511901125,0.5691183,93490.0,93489.0,0.24070349]
[1745511901330,0.5691183,93490.0,93489.0,0.34762299]
[1745511901530,0.5691183,93490.0,93489.0,0.24070349]
[1745511902126,0.5691183,93490.0,93474.0,0.1069358]
[1745511902127,0.1069332,93477.0,93474.0,0.1069358]
[1745511902328,0.4677332,93477.0,93476.0,0.14106979]
[1745511903033,0.6768332,93477.0,93476.0,0.14106979]
[1745511903231,1.0739332,93477.0,93476.0,0.27000409]
[1745511903429,1.0739332,93477.0,93476.0,0.37580409]
[1745511903933,1.0739332,93477.0,93476.0,0.37280409]
[1745511904234,1.0739332,93477.0,93476.0,0.37480409]
[1745511905032,1.0729332,93477.0,93476.0,0.35480409]
[1745511905332,1.0729332,93477.0,93476.0,0.24786979]
[1745511905724,1.0729332,93477.0,93476.0,0.34926979]
[1745511905923,1.0729332,93477.0,93476.0,0.24646979]
[1745511906722,1.1782332,93477.0,93476.0,0.24646979]
[1745511907633,1.1782332,93477.0,93476.0,0.14506979]
[1745511908431,1.1782332,93477.0,93476.0,0.14406979]
[1745511909229,1.1782332,93477.0,93476.0,0.14306979]
[1745511912436,1.2476332,93477.0,93476.0,0.14306979]
[1745511914037,0.5,93477.0,93476.0,0.11000409]
[1745511914228,0.5,93477.0,93476.0,0.62080409]
[1745511914829,0.08151374,93489.0,93488.0,0.1069206]
[1745511915131,0.18843324,93489.0,93488.0,0.2569206]
[1745511915339,0.28883324,93489.0,93488.0,0.2569206]
[1745511915534,0.10891017,93495.0,93494.0,0.1069138]
[1745511915741,0.10891017,93495.0,93494.0,0.2569138]
[1745511916040,0.21582277,93495.0,93494.0,0.2569138]
[1745511916343,0.21582277,93495.0,93494.0,0.3535138]
[1745511917032,0.22282277,93495.0,93494.0,0.3535138]
[1745511918139,0.22282277,93495.0,93494.0,0.2466]
[1745511918344,0.31872277,93495.0,93494.0,0.2466]
[1745511919442,0.2098126,93495.0,93494.0,0.3535138]
[1745511921834,0.1139126,93495.0,93494.0,0.3535138]
[1745511923444,0.1139126,93495.0,93494.0,0.2466]
[1745511923636,0.1139126,93495.0,93494.0,0.3535138]
[1745511924342,0.1139126,93495.0,93494.0,0.15]
[1745511924643,0.2137126,93495.0,93494.0,0.15]
[1745511925047,0.1069241,93485.0,93484.0,0.0993]
[1745511925242,0.4677241,93485.0,93484.0,0.2393]
[1745511925545,0.4677241,93485.0,93484.0,0.14]
[1745511926050,0.7833921,93485.0,93484.0,0.14]
[1745511926349,0.7843921,93485.0,93484.0,0.14]
[1745511926541,0.1069332,93477.0,93471.0,0.1042]
[1745511926851,0.4677332,93477.0,93476.0,0.16800409]
[1745511927243,0.104,93478.0,93477.0,0.1069332]
[1745511927445,0.1069272,93483.0,93482.0,0.1069275]
[1745511927645,0.502,93485.0,93484.0,0.1069252]
[1745511927840,0.502,93485.0,93484.0,0.2469252]
[1745511928049,0.5,93485.0,93484.0,0.2469252]
[1745511928349,0.5,93485.0,93484.0,0.4189252]
[1745511928539,0.1069193,93490.0,93489.0,0.1069195]
[1745511928744,0.1069193,93490.0,93489.0,0.2669195]
[1745511929435,0.1069193,93490.0,93489.0,0.3625195]
[1745511929750,0.1089193,93490.0,93489.0,0.3625195]
[1745511930447,0.002,93490.0,93489.0,0.3625195]
[1745511930653,0.002,93490.0,93489.0,0.7233195]
[1745511931044,0.002,93490.0,93489.0,0.8293195]
[1745511931247,0.002,93490.0,93489.0,1.0013195]
[1745511931451,0.2077058,93501.0,93500.0,0.1069069]
[1745511931749,0.2077058,93501.0,93500.0,0.2669069]
[1745511932448,0.2077058,93501.0,93500.0,0.4617069]
[1745511932745,0.2167058,93501.0,93500.0,0.4617069]
[1745511933140,0.2167058,93501.0,93500.0,0.47501785]
[1745511935142,0.2167058,93501.0,93500.0,0.27171095]
[1745511935551,0.2167058,93501.0,93500.0,0.17331095]
[1745511935854,0.2167058,93501.0,93500.0,0.16]
[1745511937458,0.2167058,93501.0,93500.0,0.2669069]
[1745511937755,0.2167058,93501.0,93500.0,0.16]
[1745511941965,0.7167058,93501.0,93500.0,0.16]
[1745511943657,0.7167058,93501.0,93500.0,0.2669069]
[1745511943858,0.7167058,93501.0,93500.0,0.16]
[1745511944265,0.2167058,93501.0,93500.0,0.16]
[1745511948361,0.1603975,93480.0,93479.0,0.1069252]
[1745511948560,0.4677314,93480.0,93479.0,0.16]
[1745511948768,0.4677314,93480.0,93479.0,0.2669309]
[1745511948969,0.4677314,93480.0,93479.0,0.16]
[1745511949856,0.4677314,93480.0,93479.0,0.161]
[1745511950068,0.4677314,93480.0,93479.0,0.17433358]
[1745511950265,0.4677314,93480.0,93479.0,0.161]
[1745511950659,0.4677314,93480.0,93479.0,0.001]
[1745511951567,0.9677314,93480.0,93479.0,0.001]
[1745511953760,0.9677314,93480.0,93479.0,0.011]
[1745511954263,0.0534691,93473.0,93469.0,0.1069423]
[1745511954469,0.1989,93472.0,93470.0,0.1051]
[1745511954669,0.4677401,93471.0,93470.0,0.14]
[1745511954868,0.4677401,93471.0,93451.0,0.48089948]
[1745511954869,0.1069458,93466.0,93465.0,0.1051]
[1745511955065,0.1069458,93466.0,93465.0,0.1651]
[1745511955565,0.1069458,93466.0,93465.0,0.06]
[1745511955566,0.4677458,93466.0,93465.0,0.06]
[1745511955872,0.6697458,93466.0,93465.0,0.06]
[1745511956075,0.6697458,93466.0,93465.0,0.062]
[1745511956570,1.1697458,93466.0,93465.0,0.063]
[1745511957960,0.0534754,93462.0,93458.0,0.0984]
[1745511958161,0.1069538,93459.0,93458.0,0.2584]
[1745511958557,0.1069538,93459.0,93458.0,0.26647785]
[1745511959175,0.1069538,93459.0,93458.0,0.27047785]
[1745511959665,0.1069538,93459.0,93458.0,0.27147785]
[1745511959971,0.1069538,93459.0,93458.0,0.27247785]
[1745511962679,0.2008,93461.0,93460.0,0.1069527]
[1745511962970,0.2031515,93461.0,93460.0,0.2569527]
[1745511964070,0.2031515,93461.0,93460.0,0.2579527]
[1745511964766,0.2031515,93461.0,93460.0,0.2599527]
[1745511965475,0.0534748,93463.0,93460.0,0.3134284]
[1745511965674,0.1069515,93461.0,93460.0,0.3134284]
[1745511966563,0.4627,93466.0,93463.0,0.053474]
[1745511966772,0.521221,93466.0,93465.0,0.1069469]
[1745511966971,0.521221,93466.0,93465.0,0.2469469]
[1745511967974,0.521221,93466.0,93465.0,0.14]
[1745511968179,0.625621,93466.0,93465.0,0.14]
[1745511968788,0.1069664,93448.0,93446.0,0.00107013]
[1745511969079,0.4677664,93448.0,93447.0,0.28573712]
[1745511969271,0.4677664,93448.0,93447.0,0.2723181]
[1745511969980,0.4687664,93448.0,93447.0,0.2953181]
[1745511970880,0.4677664,93448.0,93447.0,0.28846927]
[1745511971078,0.4697664,93448.0,93447.0,0.30746927]
[1745511972377,0.4677664,93448.0,93447.0,0.28846927]
[1745511972578,0.4677664,93448.0,93447.0,0.29146927]
[1745511973273,0.1604391,93455.0,93452.0,0.0534804]
[1745511973479,0.2655391,93455.0,93454.0,0.1069595]
[1745511973681,0.2655391,93455.0,93454.0,0.2369595]
[1745511974476,0.0534795,93455.0,93454.0,0.2369595]
[1745511975385,0.0534795,93455.0,93454.0,0.2379595]
[1745511976183,0.0534795,93455.0,93454.0,0.2389595]
[1745511976782,0.3608,93457.0,93456.0,0.1069572]
[1745511976980,0.3608,93457.0,93456.0,0.2469572]
[1745511977186,0.4677561,93457.0,93456.0,0.4189572]
[1745511978085,0.3608,93457.0,93456.0,0.2469572]
[1745511978280,0.4677561,93457.0,93456.0,0.2469572]
[1745511978480,0.4677561,93457.0,93456.0,0.2479572]
[1745511980288,0.3608,93457.0,93456.0,0.2479572]
[1745511980586,0.4677561,93457.0,93456.0,0.2479572]
[1745511981991,0.3608,93457.0,93456.0,0.2479572]
[1745511983290,0.3608,93457.0,93456.0,0.3471572]
[1745511984198,0.4677561,93457.0,93456.0,0.3471572]
[1745511985084,0.6695561,93457.0,93456.0,0.3471572]
[1745511988593,0.6695561,93457.0,93456.0,0.2479572]
[1745511992693,0.6695561,93457.0,93456.0,0.141]
[1745511992898,0.6695561,93457.0,93456.0,0.2479572]
[1745511994507,0.6695561,93457.0,93456.0,0.141]
[1745511994807,0.6695561,93457.0,93456.0,0.2479572]
[1745511995009,0.6695561,93457.0,93456.0,0.141]
[1745511996199,0.7397161,93457.0,93456.0,0.141]
[1745511996395,1.2397161,93457.0,93456.0,0.141]
[1745511996595,1.2397161,93457.0,93456.0,0.021]
[1745511997704,0.1069641,93450.0,93449.0,0.0534826]
[1745511997909,0.1069641,93450.0,93449.0,0.2134826]
[1745511998516,0.3162641,93450.0,93449.0,0.2134826]
[1745511999202,0.3162641,93450.0,93449.0,0.2174826]
[1745512009012,0.3162641,93450.0,93449.0,0.164]
[1745512009214,0.3162641,93450.0,93449.0,0.2709652]
[1745512011014,0.3162641,93450.0,93449.0,0.164]
[1745512011417,0.3162641,93450.0,93449.0,0.2709652]
[1745512014415,0.1048,93450.0,93449.0,0.2709652]
[1745512014727,0.1048,93450.0,93449.0,0.3550652]
[1745512015723,0.2117641,93450.0,93449.0,0.3550652]
[1745512017020,0.1048,93450.0,93449.0,0.3550652]
[1745512017224,0.3608,93457.0,93456.0,0.1069572]
[1745512017422,0.3608,93457.0,93456.0,0.2569572]
[1745512017730,0.4677561,93457.0,93456.0,0.2569572]
[1745512018229,0.4677561,93457.0,93456.0,0.4567572]
[1745512019724,0.3608,93457.0,93456.0,0.4567572]
[1745512019935,0.4677561,93457.0,93456.0,0.4567572]
[1745512020125,0.1054,93460.0,93459.0,0.1069538]
[1745512020429,0.2123527,93460.0,93459.0,0.2669538]
[1745512022822,0.2133527,93460.0,93459.0,0.2669538]
[1745512024123,0.2133527,93460.0,93459.0,0.16]
[1745512024324,0.1069572,93456.0,93455.0,0.106958]
[1745512024524,0.4677572,93456.0,93455.0,0.216958]
[1745512025339,0.6648572,93456.0,93455.0,0.216958]
[1745512026437,0.6648572,93456.0,93455.0,0.217958]
[1745512027639,0.6648572,93456.0,93455.0,0.111]
[1745512027942,0.6648572,93456.0,93455.0,0.2179584]
[1745512028642,0.6648572,93456.0,93455.0,0.111]
[1745512029342,0.6648572,93456.0,93455.0,0.2179584]
[1745512030045,1.1648572,93456.0,93455.0,0.2179584]
[1745512031336,1.1648572,93456.0,93455.0,0.111]
[1745512032349,1.1648572,93456.0,93455.0,0.2179584]
[1745512032852,1.1648572,93456.0,93455.0,0.111]
[1745512033152,1.1648572,93456.0,93455.0,0.2179584]
[1745512034939,1.0686572,93456.0,93455.0,0.2179584]
[1745512035538,1.1730572,93456.0,93455.0,0.2179584]
[1745512035751,0.6730572,93456.0,93455.0,0.2179584]
[1745512037746,0.6730572,93456.0,93455.0,0.111]
[1745512037948,0.6730572,93456.0,93455.0,0.2179584]
[1745512038349,0.6730572,93456.0,93455.0,0.111]
[1745512038548,0.6730572,93456.0,93455.0,0.2179584]
[1745512039058,0.6730572,93456.0,93455.0,0.111]
[1745512039245,0.6730572,93456.0,93455.0,0.2179584]
[1745512042645,0.6730572,93456.0,93455.0,0.111]
[1745512042850,0.6730572,93456.0,93455.0,0.2179584]
[1745512045855,0.6730572,93456.0,93455.0,0.111]
[1745512046558,1.1730572,93456.0,93455.0,0.001]
[1745512046856,1.2424972,93456.0,93455.0,0.001]
[1745512047557,0.1069618,93452.0,93451.0,0.2086621]
[1745512047747,0.1069618,93452.0,93451.0,0.2286621]
[1745512048348,0.2040618,93452.0,93451.0,0.2286621]
[1745512048842,0.2040618,93452.0,93451.0,0.021]
[1745512049760,0.2040618,93452.0,93451.0,0.127963]
[1745512050054,0.7040618,93452.0,93451.0,0.127963]
[1745512050358,0.7040618,93452.0,93451.0,0.128963]
[1745512050761,0.7040618,93452.0,93451.0,0.022]
[1745512051158,0.7040618,93452.0,93451.0,0.232563]
[1745512051861,0.7040618,93452.0,93451.0,0.1256]
[1745512052159,0.7040618,93452.0,93451.0,0.232563]
[1745512055253,0.7040618,93452.0,93451.0,0.331063]
[1745512056361,0.7040618,93452.0,93451.0,0.1256]
[1745512056662,0.8085618,93452.0,93451.0,0.1256]
[1745512058461,0.8085618,93452.0,93451.0,0.022]
[1745512059063,0.8085618,93452.0,93451.0,0.128963]
[1745512062863,0.5971,93452.0,93451.0,0.108963]
[1745512063063,0.5,93452.0,93451.0,0.488863]
[1745512063363,0.10891017,93458.0,93457.0,0.1069561]
[1745512063562,0.21586507,93458.0,93457.0,0.2769561]
[1745512064267,0.21586507,93458.0,93457.0,0.4811561]
[1745512064566,0.21686507,93458.0,93457.0,0.4811561]
[1745512064964,0.57766507,93458.0,93457.0,0.4811561]
[1745512065268,0.57766507,93458.0,93457.0,0.3751561]
[1745512065768,0.57766507,93458.0,93457.0,0.2682]